bitfinex/quotes_SOLUSD_20250531
["timestamp","ask_amount","ask_price","bid_price","bid_amount"]
[1748694023837,0.28432314,153.98,153.93,27.4827208]
[1748694023993,10.71074812,153.98,153.93,27.4827208]
[1748694024193,10.42642498,153.97,153.93,17.05629582]
[1748694024386,10.42642498,153.96,153.93,10.56]
[1748694025308,10.42642498,153.95,153.93,17.05635541]
[1748694025611,10.71074812,153.96,153.93,17.05635541]
[1748694027289,10.71074812,153.96,153.93,6.49635541]
[1748694027491,10.71074812,153.96,153.9,36.48]
[1748694027492,10.42642498,153.95,153.92,6.49671534]
[1748694028195,10.42642498,153.94,153.91,6.49712488]
[1748694028390,6.7795619,153.96,153.9,16.97754452]
[1748694028391,10.42642498,153.93,153.9,16.97754452]
[1748694029314,10.42642498,153.93,153.9,10.48]
[1748694031710,10.42642498,153.93,153.9,16.97770291]
[1748694032614,10.42642498,153.94,153.9,16.97770291]
[1748694034992,10.71074812,153.93,153.9,10.48]
[1748694035824,10.71074812,153.91,153.86,53.02172498]
[1748694036126,10.71074812,153.92,153.87,16.92523445]
[1748694037017,10.42642498,153.91,153.87,6.49880947]
[1748694038217,0.28432314,153.92,153.87,6.49880947]
[1748694038431,0.28432314,153.91,153.87,16.92523445]
[1748694038631,10.42642498,153.93,153.88,10.42642498]
[1748694039128,10.42642498,153.92,153.87,33.17271609]
[1748694040611,10.71074812,153.93,153.87,33.17271609]
[1748694041009,0.28432314,153.93,153.87,33.17271609]
[1748694041414,0.28432314,153.93,153.88,10.42642498]
[1748694041621,10.42642498,153.94,153.88,10.42642498]
[1748694043018,10.42642498,153.94,153.89,6.49814802]
[1748694044031,10.42642498,153.93,153.89,6.49814802]
[1748694044414,10.71074812,153.94,153.89,16.924573]
[1748694046309,10.42642498,153.94,153.89,16.924573]
[1748694046531,1.84902314,153.95,153.91,10.42642498]
[1748694046832,1.70686157,153.95,153.91,10.42642498]
[1748694047539,12.13328655,153.95,153.9,16.92415077]
[1748694048527,12.13328655,153.95,153.9,27.42415077]
[1748694049617,10.42642498,153.94,153.9,16.99772579]
[1748694050728,0.28432314,153.94,153.9,16.99772579]
[1748694050928,10.71074812,153.94,153.9,16.99772579]
[1748694051928,0.28432314,153.94,153.9,27.42415077]
[1748694054519,11.99112498,153.95,153.9,27.42415077]
[1748694055253,11.99112498,153.95,153.9,43.66846525]
[1748694055455,147.18432314,153.96,153.92,10.42642498]
[1748694055615,147.18432314,153.96,153.91,10.42642498]
[1748694056728,0.28432314,153.95,153.9,33.24204027]
[1748694056933,0.28432314,153.95,153.9,43.66846525]
[1748694057336,146.9,153.96,153.93,6.49645942]
[1748694060759,10.71074812,153.97,153.93,6.49645942]
[1748694062643,10.71074812,153.97,153.93,10.42642498]
[1748694063350,10.42642498,153.96,153.91,22.74056265]
[1748694063552,10.42642498,153.96,153.92,10.42642498]
[1748694063851,0.28432314,153.95,153.91,16.92372859]
[1748694064627,18.933972,153.95,153.91,16.92372859]
[1748694064932,29.36039698,153.95,153.91,16.92371226]
[1748694065553,29.36039698,153.95,153.91,6.49728728]
[1748694066460,10.42642498,153.93,153.9,10.5]
[1748694066759,0.28432314,153.93,153.9,16.99771221]
[1748694070953,0.28432314,153.93,153.89,6.49809194]
[1748694070954,10.71074812,153.93,153.89,6.49809194]
[1748694071662,10.42642498,153.92,153.89,6.49809194]
[1748694072855,0.28432314,153.91,153.87,16.92512747]
[1748694074262,10.42642498,153.93,153.88,10.42642498]
[1748694074473,12.04242498,153.94,153.89,10.42642498]
[1748694075062,12.04242498,153.94,153.9,6.49772579]
[1748694076956,146.9,153.95,153.91,10.42642498]
[1748694077136,10.42642498,153.96,153.91,10.42642498]
[1748694079964,10.42642498,153.94,153.89,10.42642498]
[1748694081171,10.42642498,153.95,153.9,33.16846525]
[1748694081466,0.28432314,153.95,153.91,10.42642498]
[1748694082571,10.71074812,153.95,153.9,33.16846525]
[1748694083271,0.28432314,153.95,153.9,33.16846525]
[1748694083845,0.28432314,153.97,153.93,10.42642498]
[1748694084368,146.9,153.99,153.96,10.42642498]
[1748694084569,1.5558,154.02,153.98,10.42642498]
[1748694084752,11.98222498,154.02,153.97,10.42642498]
[1748694085275,0.28432314,154.01,153.97,10.42642498]
[1748694085451,0.28432314,154.01,153.96,20.90642498]
[1748694086154,10.71074812,154.01,153.97,6.4947717]
[1748694087877,18.933972,154.03,153.98,10.42642498]
[1748694088178,29.36039698,154.03,153.99,6.49392817]
[1748694089253,10.42642498,154.01,153.98,6.4941895]
[1748694090048,10.71074812,154.02,153.98,6.4941895]
[1748694090373,0.28432314,154.02,153.98,6.4941895]
[1748694090577,0.28432314,154.02,153.98,16.92061448]
[1748694092261,10.71074812,154.02,153.98,6.4941895]
[1748694093756,17.20342503,154.02,153.97,6.49464227]
[1748694093957,10.42642498,154.01,153.97,6.49464227]
[1748694095472,0.28432314,154.0,153.97,6.49464227]
[1748694095670,10.71074812,154.0,153.97,6.49464227]
[1748694096077,10.42642498,153.99,153.96,16.97505915]
[1748694096265,10.42642498,153.99,153.96,10.48]
[1748694096690,10.42642498,153.99,153.96,16.97516001]
[1748694097553,10.42642498,153.99,153.96,10.48]
[1748694097754,10.42642498,153.98,153.96,10.48]
[1748694097953,18.64964886,154.0,153.96,16.97515981]
[1748694098153,0.28432314,153.99,153.96,16.97515981]
[1748694098689,10.42642498,154.01,153.96,27.40158479]
[1748694100073,0.14216157,154.03,153.98,10.42642498]
[1748694100256,157.32642498,154.04,153.98,10.42642498]
[1748694100452,10.42642498,154.03,153.98,10.42642498]
[1748694101782,10.42642498,154.03,153.96,33.2131437]
[1748694101783,18.933972,154.02,153.97,10.42642498]
[1748694101987,0.28432314,154.0,153.97,6.49464387]
[1748694103373,0.28432314,154.01,153.97,6.49464387]
[1748694103768,10.42642498,154.02,153.97,6.49464387]
[1748694104089,146.9,154.04,153.97,6.49464387]
[1748694104090,10.42642498,154.03,153.98,10.42642498]
[1748694105075,10.42642498,154.03,153.97,16.92106885]
[1748694106766,0.28432314,154.02,153.97,16.92106885]
[1748694106967,0.28432314,154.0,153.96,16.97504701]
[1748694107790,10.42642498,153.99,153.96,10.48]
[1748694108859,10.42642498,153.99,153.96,16.97514279]
[1748694110290,29.36039698,154.0,153.96,16.97514279]
[1748694110482,35.85392514,154.0,153.96,10.48]
[1748694110688,0.28432314,153.98,153.96,10.48]
[1748694110892,10.71074812,153.98,153.96,10.48]
[1748694111594,0.28432314,153.98,153.96,10.48]
[1748694111795,0.28432314,153.98,153.96,16.97517363]
[1748694112184,0.28432314,153.98,153.96,10.48]
[1748694114381,0.28432314,153.98,153.96,16.97518562]
[1748694115184,10.42642498,154.0,153.96,16.97518562]
[1748694115999,29.36039698,154.01,153.96,16.97518562]
[1748694117606,146.9,154.02,153.97,10.42642498]
[1748694117905,0.14216157,154.03,153.98,10.42642498]
[1748694118100,0.28432314,154.03,153.98,10.42642498]
[1748694118406,10.42642498,154.03,153.98,10.42642498]
[1748694119603,10.42642498,154.03,153.97,10.42642498]
[1748694120403,0.28432314,154.02,153.97,10.42642498]
[1748694120580,29.36039698,154.02,153.97,10.42642498]
[1748694121695,18.933972,154.02,153.98,6.49434991]
[1748694122182,29.36039698,154.02,153.98,6.49434991]
[1748694124186,0.28432314,154.02,153.98,6.49434991]
[1748694124702,0.28432314,154.02,153.98,16.92077489]
[1748694125806,0.28432314,154.02,153.98,6.49434991]
[1748694132910,10.42642498,154.03,153.98,6.49434991]
[1748694135699,10.71074812,154.02,153.97,6.49471785]
[1748694135908,10.42642498,154.0,153.97,6.49471785]
[1748694136195,10.42642498,154.0,153.96,16.9750149]
[1748694136784,0.28432314,153.99,153.96,10.48]
[1748694137703,0.28432314,153.99,153.96,16.97518177]
[1748694139699,26.0,154.03,153.96,16.97518177]
[1748694139700,10.42642498,154.05,153.98,36.42642498]
[1748694139904,10.42642498,154.06,154.0,10.42642498]
[1748694140209,18.64964886,154.05,154.0,10.42642498]
[1748694141105,0.28432314,154.04,154.0,10.42642498]
[1748694141308,0.14216157,154.04,154.0,10.42642498]
[1748694141804,0.28432314,154.04,154.01,6.49308486]
[1748694144604,0.28432314,154.04,153.99,10.42642498]
[1748694144807,0.28432314,154.04,153.96,37.14376295]
[1748694144808,0.28432314,154.01,153.96,37.14376295]
[1748694145106,0.28432314,154.01,153.97,10.42642498]
[1748694145302,0.28432314,154.01,153.97,16.92119668]
[1748694145609,0.28432314,154.01,153.99,6.49392817]
[1748694147808,0.28432314,154.01,153.98,6.49434991]
[1748694149197,0.28432314,154.01,153.96,37.14376295]
[1748694149416,0.28432314,154.01,153.97,6.4947717]
[1748694152402,10.71074812,154.01,153.97,6.4947717]
[1748694153202,0.28432314,154.01,153.97,6.4947717]
[1748694153403,18.933972,154.01,153.97,6.4947717]
[1748694153619,29.36039698,154.01,153.97,6.4947717]
[1748694154501,0.28432314,153.99,153.96,16.97505214]
[1748694157018,18.933972,153.99,153.96,10.48]
[1748694157319,10.42642498,153.98,153.95,6.49547045]
[1748694158603,10.42642498,153.98,153.94,6.49603741]
[1748694159008,29.36039698,153.99,153.94,6.49603741]
[1748694159403,29.36039698,153.99,153.94,16.92246239]
[1748694159998,18.933972,153.99,153.94,16.92246239]
[1748694160909,29.36039698,153.99,153.94,16.92246239]
[1748694161503,29.36039698,153.99,153.94,6.49603741]
[1748694161700,61.85444657,153.99,153.92,10.46]
[1748694162024,0.28432314,153.94,153.92,10.46]
[1748694162196,0.28432314,153.94,153.91,6.49721818]
[1748694164103,0.28432314,153.94,153.89,6.49814802]
[1748694164303,0.28432314,153.94,153.9,10.42642498]
[1748694164821,0.28432314,153.94,153.91,6.49730361]
[1748694166127,55.36039698,153.92,153.82,22.75386814]
[1748694166303,55.36039698,153.92,153.86,10.42642498]
[1748694166304,0.28432314,153.9,153.86,10.42642498]
[1748694167120,0.28432314,153.9,153.86,16.92543262]
[1748694167434,0.28432314,153.9,153.86,6.49900764]
[1748694168423,10.71074812,153.9,153.86,6.49900764]
[1748694168629,10.42642498,153.89,153.86,6.49900764]
[1748694169442,10.42642498,153.89,153.85,6.4998375]
[1748694169622,0.28432314,153.88,153.84,16.92651779]
[1748694169826,0.28432314,153.88,153.84,6.50009281]
[1748694170422,10.71074812,153.88,153.84,6.50009281]
[1748694172142,10.42642498,153.87,153.84,6.50009281]
[1748694172651,10.71074812,153.88,153.84,6.50009281]
[1748694175154,0.28432314,153.86,153.83,16.96059165]
[1748694175465,0.14216157,153.89,153.85,10.42642498]
[1748694175626,146.9,153.9,153.84,6.4461]
[1748694175627,146.9,153.9,153.86,10.42642498]
[1748694176534,157.32642498,153.9,153.85,10.42642498]
[1748694177134,157.32642498,153.9,153.86,6.49941505]
[1748694177340,0.28432314,153.89,153.85,16.92615515]
[1748694177537,10.71074812,153.89,153.85,6.49973017]
[1748694179230,10.71074812,153.89,153.84,23.37268867]
[1748694179443,10.42642498,153.88,153.84,6.50016369]
[1748694179661,29.36039698,153.87,153.83,16.96053726]
[1748694180726,29.36039698,153.87,153.83,27.38696224]
[1748694180727,0.28432314,153.87,153.83,27.38696224]
[1748694181545,0.28432314,153.87,153.83,16.96053726]
[1748694181930,0.28432314,153.87,153.83,27.38696224]
[1748694182950,0.28432314,153.87,153.83,43.63866866]
[1748694183155,0.28432314,153.88,153.83,43.63866866]
[1748694184048,0.28432314,153.89,153.86,10.42642498]
[1748694184254,146.9,153.9,153.86,10.42642498]
[1748694184448,0.14216157,153.89,153.86,10.42642498]
[1748694184651,0.14216157,153.89,153.85,10.42642498]
[1748694184837,0.28432314,153.89,153.85,10.42642498]
[1748694185035,0.28432314,153.89,153.84,40.04]
[1748694185331,0.28432314,153.89,153.85,10.42642498]
[1748694186062,10.42642498,153.88,153.85,6.4998375]
[1748694187148,0.28432314,153.87,153.85,6.4998375]
[1748694188231,10.42642498,153.89,153.85,22.74943126]
[1748694188536,0.28432314,153.89,153.86,10.42642498]
[1748694188860,0.14216157,153.89,153.86,10.42642498]
[1748694189234,0.28432314,153.89,153.86,10.42642498]
[1748694190340,0.28432314,153.89,153.85,33.17585624]
[1748694191442,0.28432314,153.89,153.86,10.42642498]
[1748694192149,0.28432314,153.89,153.86,20.88642498]
[1748694192352,0.28432314,153.89,153.87,6.49899265]
[1748694205749,11.94508317,153.93,153.88,10.42642498]
[1748694205954,11.94508317,153.93,153.89,10.42642498]
[1748694206153,11.94508317,153.93,153.9,10.42642498]
[1748694206567,11.94508317,153.93,153.91,6.49730361]
[1748694206947,10.42642498,153.95,153.91,6.49730361]
[1748694207361,0.28432314,153.94,153.91,6.49730361]
[1748694207560,10.71074812,153.94,153.91,6.49730361]
[1748694208847,10.71074812,153.94,153.9,6.49772579]
[1748694211166,0.28432314,153.92,153.9,6.49772579]
[1748694212373,29.36039698,153.92,153.89,6.49814802]
[1748694213471,18.933972,153.92,153.88,10.42642498]
[1748694214072,17.21985776,153.92,153.88,10.42642498]
[1748694215458,17.21985776,153.92,153.89,6.49814802]
[1748694216565,0.28432314,153.91,153.88,6.49838885]
[1748694217977,0.28432314,153.91,153.87,10.42642498]
[1748694217978,0.28432314,153.91,153.87,16.92524067]
[1748694218376,10.71074812,153.91,153.87,6.49881569]
[1748694224177,0.28432314,153.91,153.87,6.49881569]
[1748694227582,0.28432314,153.91,153.87,16.92524067]
[1748694234168,146.9,153.93,153.89,10.42642498]
[1748694235191,146.9,153.93,153.9,6.49772579]
[1748694236500,146.9,153.93,153.89,16.92439954]
[1748694240376,18.933972,153.92,153.87,16.92513294]
[1748694241604,25.43091679,153.92,153.87,16.92513294]
[1748694241982,25.43091679,153.92,153.87,10.42642498]
[1748694242294,0.28432314,153.9,153.86,16.95930346]
[1748694242994,10.71074812,153.9,153.86,16.95930346]
[1748694244498,0.28432314,153.9,153.86,27.38572844]
[1748694245480,0.28432314,153.9,153.86,16.95930346]
[1748694245681,17.20848007,153.9,153.86,10.46]
[1748694246201,29.36039698,153.87,153.81,16.99240424]
[1748694246381,29.36039698,153.87,153.82,10.42642498]
[1748694247899,29.36039698,153.87,153.83,6.50068257]
[1748694248407,29.36039698,153.87,153.82,16.92747438]
[1748694251489,35.85939492,153.87,153.82,16.92747438]
[1748694253581,35.85939492,153.87,153.81,16.99236682]
[1748694253789,10.42642498,153.85,153.81,10.49087639]
[1748694253988,18.64964886,153.85,153.81,20.91730137]
[1748694254985,18.64964886,153.85,153.81,27.41871332]
[1748694258913,29.07607384,153.85,153.81,16.99228834]
[1748694259214,35.575966,153.85,153.81,10.49087639]
[1748694259993,0.28432314,153.84,153.81,10.49087639]
[1748694260186,0.28432314,153.84,153.81,16.99236636]
[1748694260409,18.64964886,153.85,153.82,10.42642498]
[1748694263321,0.28432314,153.84,153.82,10.42642498]
[1748694263519,0.28432314,153.84,153.81,20.91730137]
[1748694267702,6.78472,153.84,153.81,10.49087639]
[1748694269511,6.78472,153.84,153.81,0.05087639]
[1748694270538,18.933972,153.86,153.82,10.42642498]
[1748694270707,29.21823541,153.86,153.82,10.42642498]
[1748694271231,0.14216157,153.85,153.81,0.05087639]
[1748694271399,0.14216157,153.85,153.81,10.47730137]
[1748694271603,18.79181043,153.84,153.81,10.47730137]
[1748694272913,0.14216157,153.84,153.81,16.97876227]
[1748694274312,18.79181043,153.84,153.81,0.05087639]
[1748694275420,55.36039698,153.82,153.81,0.05087639]
[1748694275614,55.36039698,153.82,153.71,16.26382567]
[1748694275615,0.14216157,153.77,153.72,16.92504991]
[1748694275827,0.14216157,153.75,153.72,10.42]
[1748694276026,29.36039698,153.75,153.72,10.42]
[1748694276644,29.36039698,153.75,153.68,26.0]
[1748694276645,29.36039698,153.75,153.68,10.42]
[1748694276932,29.36039698,153.75,153.68,20.84642498]
[1748694277137,29.36039698,153.75,153.68,16.92700438]
[1748694277433,29.36039698,153.75,153.68,27.35342936]
[1748694277729,35.86446202,153.75,153.68,27.35342936]
[1748694278036,35.86446202,153.75,153.69,6.50653866]
[1748694279221,35.86446202,153.75,153.68,16.92691118]
[1748694280141,35.86446202,153.75,153.69,6.50659936]
[1748694281620,35.86446202,153.75,153.68,10.42]
[1748694285554,35.86446202,153.75,153.68,20.84642498]
[1748694285729,25.43803704,153.75,153.68,20.84642498]
[1748694286040,35.86446202,153.75,153.68,20.84642498]
[1748694286219,35.72230045,153.75,153.68,20.84642498]
[1748694286570,35.86446202,153.75,153.68,20.84642498]
[1748694287122,35.86446202,153.75,153.69,6.50659355]
[1748694288047,35.86446202,153.75,153.7,6.50617155]
[1748694289342,35.86446202,153.75,153.7,16.93259653]
[1748694291066,35.86446202,153.75,153.7,10.42642498]
[1748694293730,35.86446202,153.75,153.68,20.84642498]
[1748694294132,35.86446202,153.75,153.68,10.42642498]
[1748694303154,25.43803704,153.75,153.68,10.42642498]
[1748694303353,35.86446202,153.75,153.68,10.42642498]
[1748694305888,35.86446202,153.75,153.67,10.42642498]
[1748694306748,3.2591543,153.79,153.68,7.8817]
[1748694306977,6.50237336,153.79,153.74,10.53614788]
[1748694307279,18.64964886,153.78,153.74,10.53614788]
[1748694307482,0.28432314,153.77,153.74,10.53614788]
[1748694307652,25.1528262,153.78,153.74,10.53614788]
[1748694308462,18.64964886,153.78,153.74,17.04058772]
[1748694308666,0.14216157,153.77,153.74,17.04058772]
[1748694308865,201.56322097,153.79,153.75,10.42642498]
[1748694308866,158.63434832,153.79,153.75,10.42642498]
[1748694309059,0.28432314,153.78,153.75,10.42642498]
[1748694309265,158.63434832,153.79,153.75,10.42642498]
[1748694309465,0.28432314,153.78,153.75,10.42642498]
[1748694309755,0.14216157,153.78,153.75,16.9303503]
[1748694310678,158.63434832,153.79,153.75,6.50392532]
[1748694310873,158.63434832,153.79,153.77,10.42642498]
[1748694311274,18.64964886,153.81,153.77,10.42642498]
[1748694311470,0.28432314,153.8,153.77,10.42642498]
[1748694312160,6.78628504,153.8,153.76,10.42642498]
[1748694313486,18.933972,153.78,153.74,10.5297229]
[1748694314383,26.0,153.8,153.76,10.42642498]
[1748694314678,0.28432314,153.79,153.76,10.42642498]
[1748694314885,0.28432314,153.79,153.75,10.42642498]
[1748694315479,0.28432314,153.79,153.76,10.42642498]
[1748694315890,6.78693423,153.79,153.75,10.42642498]
[1748694316186,0.28432314,153.79,153.75,10.42642498]
[1748694316373,0.28432314,153.79,153.76,10.42642498]
[1748694318301,15.91832875,153.82,153.78,10.42642498]
[1748694318498,0.28432314,153.81,153.78,10.42642498]
[1748694320384,0.28432314,153.81,153.79,10.42642498]
[1748694321092,15.91832875,153.82,153.79,10.42642498]
[1748694321282,163.74954783,153.83,153.81,10.42642498]
[1748694321596,29.07607384,153.86,153.8,10.42642498]
[1748694321597,29.07607384,153.85,153.8,10.42642498]
[1748694321765,0.28432314,153.84,153.8,10.42642498]
[1748694322090,6.50068257,153.83,153.79,10.42642498]
[1748694323066,18.933972,153.82,153.78,10.42642498]
[1748694323492,18.933972,153.82,153.79,10.42642498]
[1748694324194,18.933972,153.82,153.78,10.42642498]
[1748694324582,6.78544913,153.82,153.76,32.50351342]
[1748694324892,6.78544913,153.82,153.78,10.42642498]
[1748694326674,6.78544913,153.82,153.76,6.50347949]
[1748694326991,6.78544913,153.82,153.78,10.42642498]
[1748694327573,17.21187411,153.82,153.75,14.63133158]
[1748694327876,17.21187411,153.82,153.77,10.42642498]
[1748694333691,0.28432314,153.8,153.77,10.42642498]
[1748694333991,0.28432314,153.8,153.76,10.42642498]
[1748694334688,0.28432314,153.8,153.77,10.42642498]
[1748694334884,6.78632391,153.8,153.77,10.42642498]
[1748694335290,0.28432314,153.8,153.77,10.42642498]
[1748694335486,6.78628994,153.8,153.77,10.42642498]
[1748694335883,0.28432314,153.8,153.77,10.42642498]
[1748694336280,0.28432314,153.8,153.77,16.92960894]
[1748694336676,0.28432314,153.8,153.77,10.42642498]
[1748694337300,0.28432314,153.8,153.77,16.92962841]
[1748694338293,153.40070974,153.83,153.78,10.42642498]
[1748694338494,153.40070974,153.83,153.8,10.42642498]
[1748694338495,146.9,153.83,153.8,10.42642498]
[1748694340382,146.9,153.83,153.81,10.42642498]
[1748694340616,0.28432314,153.82,153.79,10.42642498]
[1748694340808,0.28432314,153.82,153.78,10.42642498]
[1748694340983,0.28432314,153.82,153.79,10.42642498]
[1748694341297,146.9,153.83,153.81,10.42642498]
[1748694342178,146.9,153.83,153.81,10.42642498]
[1748694342690,146.9,153.83,153.8,10.42642498]
[1748694343697,146.9,153.83,153.81,10.42642498]
[1748694345404,146.9,153.83,153.8,10.42642498]
[1748694346668,153.40082678,153.83,153.78,16.92906037]
[1748694347292,146.9,153.83,153.79,10.42642498]
[1748694348209,146.9,153.83,153.8,10.42642498]
[1748694351495,153.40069822,153.83,153.8,10.42642498]
[1748694351709,153.40069822,153.83,153.79,10.42642498]
[1748694352642,6.78545386,153.82,153.78,20.82642498]
[1748694352823,6.78545386,153.82,153.78,10.4]
[1748694353893,6.78545386,153.82,153.78,20.82642498]
[1748694354094,0.28432314,153.8,153.78,10.4]
[1748694355517,6.7863108,153.8,153.78,10.4]
[1748694357108,0.28432314,153.8,153.78,10.4]
[1748694357501,0.28432314,153.8,153.75,6.50399985]
[1748694357502,6.78638933,153.8,153.75,6.50399985]
[1748694357720,6.78638933,153.8,153.77,10.42642498]
[1748694358228,6.78638933,153.8,153.76,10.42642498]
[1748694358833,0.28432314,153.78,153.74,20.93614788]
[1748694361396,0.28432314,153.78,153.74,27.44058775]
[1748694363223,0.28432314,153.78,153.74,20.93614788]
[1748694363224,6.78713339,153.78,153.74,20.93614788]
[1748694364233,6.78713339,153.78,153.74,10.5097229]
[1748694364425,17.21355837,153.78,153.74,10.5097229]
[1748694366607,16.92974387,153.77,153.74,10.5097229]
[1748694368524,16.92974387,153.77,153.74,0.1097229]
[1748694368525,29.36039698,153.76,153.74,0.1097229]
[1748694368716,29.36039698,153.75,153.74,0.1097229]
[1748694370510,35.86446202,153.75,153.74,0.1097229]
[1748694372320,157.32642498,153.77,153.74,0.1097229]
[1748694372632,16.25587376,153.8,153.75,10.42642498]
[1748694372633,25.15159944,153.8,153.75,10.42642498]
[1748694372943,0.28432314,153.79,153.75,10.42642498]
[1748694373145,10.71074812,153.79,153.74,17.04039269]
[1748694373829,17.07123365,153.79,153.74,17.04039269]
[1748694374141,0.14216157,153.78,153.74,17.04039269]
[1748694374511,0.14216157,153.78,153.74,10.53614788]
[1748694376215,6.64507371,153.78,153.75,10.42642498]
[1748694377046,6.64507371,153.78,153.74,0.1097229]
[1748694377047,6.64507371,153.78,153.74,10.53614788]
[1748694378018,6.64552852,153.77,153.74,10.53614788]
[1748694379256,0.14216157,153.77,153.74,10.53614788]
[1748694379845,0.14216157,153.77,153.74,0.1097229]
[1748694380156,0.14216157,153.77,153.74,10.53614788]
[1748694385460,153.40210642,153.8,153.76,10.42642498]
[1748694385630,0.28432314,153.79,153.76,10.42642498]
[1748694385953,0.14216157,153.79,153.76,10.42642498]
[1748694386149,0.28432314,153.79,153.76,10.42642498]
[1748694391055,0.28432314,153.79,153.75,10.42642498]
[1748694391747,17.21319365,153.79,153.74,6.61403502]
[1748694391932,17.21319365,153.79,153.74,10.53614788]
[1748694394657,0.28432314,153.77,153.74,10.53614788]
[1748694395453,6.78769327,153.77,153.74,10.53614788]
[1748694395973,6.78769327,153.77,153.74,0.1097229]
[1748694396635,0.28432314,153.77,153.74,0.1097229]
[1748694399755,0.28432314,153.77,153.74,17.04050653]
[1748694399946,0.28432314,153.78,153.76,10.42642498]
[1748694401663,0.28432314,153.78,153.76,16.93000606]
[1748694401978,0.28432314,153.79,153.76,16.93000606]
[1748694402659,146.9,153.8,153.76,16.93000606]
[1748694405160,146.9,153.8,153.78,10.42642498]
[1748694405380,6.0734,153.86,153.79,10.42642498]
[1748694405381,146.9,153.85,153.79,10.42642498]
[1748694405669,0.28432314,153.84,153.82,10.42642498]
[1748694406236,146.9,153.85,153.82,10.42642498]
[1748694406562,0.28432314,153.84,153.82,10.42642498]
[1748694407344,146.9,153.85,153.82,16.92743227]
[1748694411082,146.9,153.85,153.82,10.42642498]
[1748694411955,146.9,153.85,153.82,16.92751921]
[1748694412471,146.9,153.85,153.83,10.42642498]
[1748694412659,0.28432314,153.86,153.83,10.42642498]
[1748694413004,0.14216157,153.88,153.85,10.42642498]
[1748694413150,146.9,153.89,153.85,10.42642498]
[1748694413550,146.9,153.89,153.86,10.42642498]
[1748694414355,146.9,153.89,153.83,10.38]
[1748694414356,15.92088307,153.91,153.87,16.92538945]
[1748694414881,0.28432314,153.9,153.87,16.92538945]
[1748694415180,0.14216157,153.9,153.87,16.92538945]
[1748694415382,0.28432314,153.9,153.87,16.92538945]
[1748694415594,0.28432314,153.9,153.87,10.42642498]
[1748694416077,0.28432314,153.9,153.88,10.42642498]
[1748694418167,15.92088307,153.91,153.88,10.42642498]
[1748694422064,15.92088307,153.91,153.88,16.92495558]
[1748694422405,18.09383423,153.94,153.9,10.42642498]
[1748694422698,18.09383423,153.94,153.91,10.42642498]
[1748694424769,24.58990635,153.94,153.9,10.42642498]
[1748694424962,18.933972,153.93,153.88,10.36]
[1748694425180,29.36039698,153.93,153.88,20.78642498]
[1748694427073,0.28432314,153.91,153.88,20.78642498]
[1748694428490,0.28432314,153.91,153.88,10.36]
[1748694428693,0.28432314,153.91,153.88,20.78642498]
[1748694430868,0.28432314,153.92,153.89,10.42642498]
[1748694431069,0.28432314,153.92,153.88,20.78642498]
[1748694431272,18.933972,153.92,153.88,20.78642498]
[1748694432185,25.43116546,153.92,153.88,20.78642498]
[1748694433698,0.28432314,153.92,153.89,10.42642498]
[1748694434893,183.47746099,153.94,153.89,16.92456613]
[1748694435098,0.28432314,153.93,153.89,16.92456613]
[1748694435861,36.42642498,153.9,153.82,6.3161]
[1748694435971,0.28432314,153.87,153.82,33.60350366]
[1748694436292,0.28432314,153.85,153.82,20.78642498]
[1748694436463,0.28432314,153.85,153.82,10.36]
[1748694437297,0.28432314,153.83,153.79,10.42642498]
[1748694437497,10.71074812,153.83,153.78,27.10252498]
[1748694438270,17.21176433,153.83,153.78,27.10252498]
[1748694440187,6.78533935,153.83,153.79,10.42642498]
[1748694440392,0.28432314,153.83,153.79,10.42642498]
[1748694440599,0.28432314,153.84,153.81,10.42642498]
[1748694441088,6.49947739,153.86,153.81,10.42642498]
[1748694441287,0.28432314,153.85,153.82,10.42642498]
[1748694442913,6.78420531,153.85,153.82,10.42642498]
[1748694443197,6.78420531,153.85,153.8,10.42642498]
[1748694447102,17.21063029,153.85,153.8,10.42642498]
[1748694450205,0.28432314,153.83,153.79,10.42642498]
[1748694450403,10.71074812,153.83,153.78,27.10252498]
[1748694451194,0.28432314,153.83,153.78,27.10252498]
[1748694452192,6.78511972,153.83,153.78,33.60530596]
[1748694453237,6.78511972,153.83,153.79,10.42642498]
[1748694454118,6.78511972,153.83,153.78,27.10252498]
[1748694454282,17.2115447,153.83,153.78,10.36]
[1748694454588,17.2115447,153.83,153.78,20.78642498]
[1748694455903,6.50195058,153.8,153.77,10.42642498]
[1748694456117,0.28432314,153.81,153.77,10.42642498]
[1748694456118,6.78602617,153.81,153.77,10.42642498]
[1748694457910,6.78602617,153.81,153.75,32.50371245]
[1748694458114,6.78602617,153.81,153.77,10.42642498]
[1748694461482,18.64964886,153.8,153.77,10.42642498]
[1748694461690,29.07607384,153.8,153.75,10.42642498]
[1748694462913,35.57840403,153.8,153.75,10.42642498]
[1748694463793,35.57840403,153.8,153.75,16.93045419]
[1748694464507,39.88,153.82,153.75,16.93045419]
[1748694464508,10.42642498,153.82,153.78,10.42642498]